[Event "*** SCC Grand Prix: Titled Tuesday Blitz"]
[Site "Chess.com"]
[Date "2020.08.25"]
[Round "9"]
[White "fianchettoer"]
[Black "arminmusovic"]
[Result "0-1"]
[WhiteElo "2422"]
[BlackElo "2577"]
[TimeControl "180+1"]
[EndTime "11:47:17 PDT"]
[Termination "arminmusovic won by resignation"]

1. Nf3 {[%clk 0:03:00.9]} 1... a6 {[%clk 0:02:59.5]} 2. g3 {[%clk 0:02:59.5]}
2... e6 {[%clk 0:02:59.8]} 3. Bg2 {[%clk 0:03:00]} 3... d5 {[%clk 0:03:00.6]} 4.
e3 {[%clk 0:03:00.3]} 4... Nf6 {[%clk 0:03:01.1]} 5. O-O {[%clk 0:03:00.3]} 5...
c5 {[%clk 0:03:02]} 6. d4 {[%clk 0:02:59.6]} 6... Nc6 {[%clk 0:03:02.9]} 7. c4
{[%clk 0:02:59.2]} 7... Be7 {[%clk 0:03:01.9]} 8. dxc5 {[%clk 0:02:58.8]} 8...
Bxc5 {[%clk 0:03:02]} 9. cxd5 {[%clk 0:02:59.3]} 9... exd5 {[%clk 0:03:02.9]}
10. b3 {[%clk 0:02:58]} 10... O-O {[%clk 0:02:57.8]} 11. Bb2 {[%clk 0:02:58.2]}
11... Re8 {[%clk 0:02:42.8]} 12. Nc3 {[%clk 0:02:55.7]} 12... Ba7 {[%clk
0:02:40.8]} 13. Ne2 {[%clk 0:02:53.4]} 13... Ne4 {[%clk 0:02:26.1]} 14. Ned4
{[%clk 0:02:52.8]} 14... Bg4 {[%clk 0:02:24.2]} 15. Rc1 {[%clk 0:02:48.8]} 15...
Rc8 {[%clk 0:02:23.5]} 16. Nxc6 {[%clk 0:02:26]} 16... bxc6 {[%clk 0:02:10.8]}
17. Qd3 {[%clk 0:02:26.1]} 17... Nxf2 {[%clk 0:01:44.6]} 18. Rxf2 {[%clk
0:02:24.1]} 18... Rxe3 {[%clk 0:01:39]} 19. Qxa6 {[%clk 0:02:07]} 19... Ra8
{[%clk 0:01:15.7]} 20. Qxc6 {[%clk 0:00:51.1]} 20... Bxf3 {[%clk 0:00:40.8]} 21.
Kh1 {[%clk 0:00:35.2]} 21... Re6 {[%clk 0:00:35.9]} 22. Qc3 {[%clk 0:00:34.4]}
22... Bxg2+ {[%clk 0:00:31.3]} 23. Kxg2 {[%clk 0:00:35.3]} 23... d4 {[%clk
0:00:31.1]} 24. Qf3 {[%clk 0:00:31.3]} 24... Rf6 {[%clk 0:00:29.1]} 25. Qd3
{[%clk 0:00:31.9]} 25... Qd5+ {[%clk 0:00:28.3]} 26. Kg1 {[%clk 0:00:28.1]}
26... Rxf2 {[%clk 0:00:27.8]} 27. Kxf2 {[%clk 0:00:28.2]} 27... Re8 {[%clk
0:00:24.9]} 28. Rc4 {[%clk 0:00:07.6]} 28... Qe6 {[%clk 0:00:14.6]} 29. Kg2
{[%clk 0:00:02.9]} 29... h5 {[%clk 0:00:13.1]} 30. Bxd4 {[%clk 0:00:02.4]} 30...
Rd8 {[%clk 0:00:11.7]} 31. Qc3 {[%clk 0:00:01.4]} 31... Qd5+ {[%clk 0:00:11.1]}
32. Kh3 {[%clk 0:00:01.3]} 32... Bxd4 {[%clk 0:00:11.4]} 33. Rxd4 {[%clk
0:00:01.8]} 33... Qxd4 {[%clk 0:00:11.3]} 34. Qf3 {[%clk 0:00:02.7]} 34... Qd7+
{[%clk 0:00:11.2]} 0-1

[Event "*** SCC Grand Prix: Titled Tuesday Blitz"]
[Site "Chess.com"]
[Date "2020.08.25"]
[Round "9"]
[White "gagtemp"]
[Black "MrrRefrao"]
[Result "0-1"]
[WhiteElo "1954"]
[BlackElo "2202"]
[TimeControl "180+1"]
[EndTime "11:47:18 PDT"]
[Termination "MrrRefrao won on time"]

1. e4 {[%clk 0:03:00.9]} 1... c6 {[%clk 0:02:57.8]} 2. d4 {[%clk 0:02:56.5]}
2... d5 {[%clk 0:02:57.3]} 3. Nc3 {[%clk 0:02:56]} 3... dxe4 {[%clk 0:02:58.2]}
4. Nxe4 {[%clk 0:02:54.2]} 4... Nf6 {[%clk 0:02:58]} 5. Nxf6+ {[%clk 0:02:50.8]}
5... exf6 {[%clk 0:02:58.1]} 6. Nf3 {[%clk 0:02:48.6]} 6... Bd6 {[%clk
0:02:54.2]} 7. Be3 {[%clk 0:02:47.4]} 7... Bg4 {[%clk 0:02:46.6]} 8. Be2 {[%clk
0:02:45.5]} 8... Qa5+ {[%clk 0:02:44.3]} 9. Qd2 {[%clk 0:02:42.5]} 9... Qxd2+
{[%clk 0:02:43.1]} 10. Bxd2 {[%clk 0:02:41.4]} 10... O-O {[%clk 0:02:39.5]} 11.
O-O-O {[%clk 0:02:33.7]} 11... a5 {[%clk 0:02:38.1]} 12. h3 {[%clk 0:02:32.9]}
12... Be6 {[%clk 0:02:31.9]} 13. a3 {[%clk 0:02:25]} 13... Na6 {[%clk
0:02:27.2]} 14. Rhe1 {[%clk 0:02:16.7]} 14... Nc7 {[%clk 0:02:24.7]} 15. c4
{[%clk 0:02:12.8]} 15... b5 {[%clk 0:02:21.8]} 16. c5 {[%clk 0:02:04.5]} 16...
Be7 {[%clk 0:02:19.4]} 17. Bd3 {[%clk 0:01:58.2]} 17... Rfd8 {[%clk 0:02:06.1]}
18. Bc3 {[%clk 0:01:54.9]} 18... Bf8 {[%clk 0:02:01.1]} 19. g4 {[%clk
0:01:39.6]} 19... Bb3 {[%clk 0:01:53.5]} 20. Bc2 {[%clk 0:01:29.4]} 20... Bxc2
{[%clk 0:01:52.2]} 21. Kxc2 {[%clk 0:01:30.3]} 21... a4 {[%clk 0:01:47.8]} 22.
Nh4 {[%clk 0:01:22.1]} 22... Nd5 {[%clk 0:01:37.2]} 23. Nf5 {[%clk 0:01:18]}
23... Re8 {[%clk 0:01:33.3]} 24. h4 {[%clk 0:01:08.3]} 24... Re6 {[%clk
0:01:23.8]} 25. Rxe6 {[%clk 0:00:44.4]} 25... fxe6 {[%clk 0:01:24.7]} 26. Ne3
{[%clk 0:00:43.3]} 26... Ne7 {[%clk 0:01:14.6]} 27. f4 {[%clk 0:00:38.6]} 27...
Ng6 {[%clk 0:01:14.4]} 28. Ng2 {[%clk 0:00:36.4]} 28... Rd8 {[%clk 0:01:10.2]}
29. h5 {[%clk 0:00:33.3]} 29... Ne7 {[%clk 0:01:10.1]} 30. Re1 {[%clk
0:00:31.9]} 30... Kf7 {[%clk 0:01:09.5]} 31. Nh4 {[%clk 0:00:17.7]} 31... Nd5
{[%clk 0:00:57.7]} 32. Ng2 {[%clk 0:00:17.4]} 32... Rd7 {[%clk 0:00:55.8]} 33.
Re4 {[%clk 0:00:17.3]} 33... Be7 {[%clk 0:00:50.1]} 34. Kd3 {[%clk 0:00:17]}
34... f5 {[%clk 0:00:48.4]} 35. Re5 {[%clk 0:00:14.9]} 35... Bf6 {[%clk
0:00:44.9]} 36. Re1 {[%clk 0:00:13.7]} 36... fxg4 {[%clk 0:00:43.4]} 37. Re2
{[%clk 0:00:04.2]} 37... Bd8 {[%clk 0:00:35.5]} 38. Re4 {[%clk 0:00:04.1]} 38...
Bc7 {[%clk 0:00:34.4]} 39. Bd2 {[%clk 0:00:01.7]} 39... Nf6 {[%clk 0:00:31.6]}
0-1

[Event "*** SCC Grand Prix: Titled Tuesday Blitz"]
[Site "Chess.com"]
[Date "2020.08.25"]
[Round "9"]
[White "wonderfultime"]
[Black "SergeyKarjakin"]
[Result "1-0"]
[WhiteElo "2906"]
[BlackElo "2973"]
[TimeControl "180+1"]
[EndTime "11:47:19 PDT"]
[Termination "wonderfultime won by resignation"]

1. d4 {[%clk 0:03:00.9]} 1... Nf6 {[%clk 0:02:59]} 2. Nf3 {[%clk 0:03:01.4]}
2... d5 {[%clk 0:02:58.6]} 3. Bf4 {[%clk 0:03:01.8]} 3... c5 {[%clk 0:02:58.4]}
4. c3 {[%clk 0:03:01.8]} 4... Qb6 {[%clk 0:02:48.7]} 5. Qc2 {[%clk 0:03:00.9]}
5... Nc6 {[%clk 0:02:45.5]} 6. e3 {[%clk 0:03:01]} 6... Bf5 {[%clk 0:02:41.2]}
7. dxc5 {[%clk 0:03:00.4]} 7... Bxc2 {[%clk 0:02:39.2]} 8. cxb6 {[%clk
0:03:00.9]} 8... axb6 {[%clk 0:02:40]} 9. Na3 {[%clk 0:03:01.6]} 9... Be4 {[%clk
0:02:30.9]} 10. Nb5 {[%clk 0:02:59.3]} 10... O-O-O {[%clk 0:02:27.3]} 11. Bc7
{[%clk 0:02:45.4]} 11... Re8 {[%clk 0:02:17.1]} 12. Bxb6 {[%clk 0:02:39.1]}
12... Nd7 {[%clk 0:02:16.8]} 13. Bc7 {[%clk 0:02:33.9]} 13... e5 {[%clk
0:02:00]} 14. Bd6 {[%clk 0:02:21.4]} 14... f6 {[%clk 0:01:32.2]} 15. Rd1 {[%clk
0:02:07.7]} 15... Re6 {[%clk 0:01:25.3]} 16. Bxf8 {[%clk 0:01:57.7]} 16... Rxf8
{[%clk 0:01:26.2]} 17. Nd2 {[%clk 0:01:57.3]} 17... Bc2 {[%clk 0:01:25.9]} 18.
Rc1 {[%clk 0:01:55.9]} 18... Bg6 {[%clk 0:01:26.2]} 19. Nb3 {[%clk 0:01:53.2]}
19... Kb8 {[%clk 0:01:15.5]} 20. Be2 {[%clk 0:01:49.6]} 20... Nb6 {[%clk
0:01:15.4]} 21. Nc5 {[%clk 0:01:43.4]} 21... Re7 {[%clk 0:01:14.6]} 22. O-O
{[%clk 0:01:41.7]} 22... d4 {[%clk 0:00:56.2]} 23. Rfd1 {[%clk 0:01:34.2]} 23...
dxe3 {[%clk 0:00:53.7]} 24. fxe3 {[%clk 0:01:35.1]} 24... Bf7 {[%clk 0:00:52.9]}
25. c4 {[%clk 0:01:17]} 25... f5 {[%clk 0:00:52.5]} 26. b3 {[%clk 0:00:58.5]}
26... e4 {[%clk 0:00:50.5]} 27. Rf1 {[%clk 0:00:55.8]} 27... g6 {[%clk
0:00:47.5]} 28. Rcd1 {[%clk 0:00:56.2]} 28... Ne5 {[%clk 0:00:44.4]} 29. Rd6
{[%clk 0:00:50.5]} 29... Nbd7 {[%clk 0:00:39]} 30. Nxd7+ {[%clk 0:00:47.5]}
30... Nxd7 {[%clk 0:00:39.9]} 31. g4 {[%clk 0:00:38.3]} 31... fxg4 {[%clk
0:00:40.8]} 32. Bxg4 {[%clk 0:00:33.3]} 32... Ne5 {[%clk 0:00:41]} 33. Be2
{[%clk 0:00:33.2]} 33... Rg8 {[%clk 0:00:32.3]} 34. Rdf6 {[%clk 0:00:33.3]}
34... g5 {[%clk 0:00:25.9]} 35. Nd6 {[%clk 0:00:33]} 35... Bg6 {[%clk
0:00:23.8]} 36. h3 {[%clk 0:00:26.1]} 36... h5 {[%clk 0:00:21.7]} 37. c5 {[%clk
0:00:23.6]} 37... g4 {[%clk 0:00:20.7]} 38. hxg4 {[%clk 0:00:24.5]} 38... hxg4
{[%clk 0:00:21.4]} 39. Rf8+ {[%clk 0:00:25.1]} 39... Rxf8 {[%clk 0:00:20.3]} 40.
Rxf8+ {[%clk 0:00:26]} 40... Kc7 {[%clk 0:00:20.3]} 41. Bb5 {[%clk 0:00:21.4]}
1-0

[Event "*** SCC Grand Prix: Titled Tuesday Blitz"]
[Site "Chess.com"]
[Date "2020.08.25"]
[Round "9"]
[White "TwentyHoursADay"]
[Black "juancruzarias"]
[Result "0-1"]
[WhiteElo "2463"]
[BlackElo "2379"]
[TimeControl "180+1"]
[EndTime "11:47:20 PDT"]
[Termination "juancruzarias won by checkmate"]

1. b4 {[%clk 0:02:58.8]} 1... d5 {[%clk 0:02:57.9]} 2. Bb2 {[%clk 0:02:58.7]}
2... Nf6 {[%clk 0:02:52.7]} 3. Nf3 {[%clk 0:02:58.6]} 3... Bf5 {[%clk
0:02:52.6]} 4. e3 {[%clk 0:02:58.2]} 4... e6 {[%clk 0:02:52.9]} 5. a3 {[%clk
0:02:58.4]} 5... Bd6 {[%clk 0:02:53.2]} 6. c4 {[%clk 0:02:58.6]} 6... c6 {[%clk
0:02:53]} 7. Nc3 {[%clk 0:02:58.9]} 7... O-O {[%clk 0:02:52.8]} 8. h3 {[%clk
0:02:59.2]} 8... h6 {[%clk 0:02:52]} 9. g4 {[%clk 0:02:59.2]} 9... Bh7 {[%clk
0:02:49.4]} 10. Rg1 {[%clk 0:02:59.6]} 10... Ne4 {[%clk 0:02:46.8]} 11. d3
{[%clk 0:02:55.9]} 11... Nxc3 {[%clk 0:02:42.3]} 12. Bxc3 {[%clk 0:02:56.8]}
12... Nd7 {[%clk 0:02:23.6]} 13. g5 {[%clk 0:02:37.1]} 13... h5 {[%clk
0:02:23.3]} 14. Nh4 {[%clk 0:02:35.6]} 14... Bg6 {[%clk 0:02:03.3]} 15. Nxg6
{[%clk 0:02:34.5]} 15... fxg6 {[%clk 0:02:04.2]} 16. d4 {[%clk 0:02:10.6]} 16...
Qe7 {[%clk 0:01:41.5]} 17. Qc2 {[%clk 0:02:08.9]} 17... a5 {[%clk 0:01:28.5]}
18. c5 {[%clk 0:02:07.6]} 18... Bc7 {[%clk 0:01:25.7]} 19. Qxg6 {[%clk
0:01:59.5]} 19... e5 {[%clk 0:01:18]} 20. Qxh5 {[%clk 0:01:46]} 20... axb4
{[%clk 0:01:14.3]} 21. axb4 {[%clk 0:01:34.5]} 21... Rxa1+ {[%clk 0:01:11.6]}
22. Bxa1 {[%clk 0:01:35.4]} 22... e4 {[%clk 0:00:45.7]} 23. Rg4 {[%clk
0:01:25.4]} 23... Ra8 {[%clk 0:00:40.1]} 24. Bc3 {[%clk 0:01:06.5]} 24... Nf8
{[%clk 0:00:40]} 25. g6 {[%clk 0:00:48.3]} 25... Qf6 {[%clk 0:00:36.5]} 26. Be2
{[%clk 0:00:27]} 26... Ra3 {[%clk 0:00:26.5]} 27. Kd2 {[%clk 0:00:22.5]} 27...
Ra2+ {[%clk 0:00:21.8]} 28. Ke1 {[%clk 0:00:17.9]} 28... Ra3 {[%clk 0:00:22]}
29. Kd2 {[%clk 0:00:13.1]} 29... Ra2+ {[%clk 0:00:15.9]} 30. Ke1 {[%clk
0:00:13.2]} 30... Ra3 {[%clk 0:00:12.7]} 31. Bd2 {[%clk 0:00:07.8]} 31... Ra1+
{[%clk 0:00:12.1]} 32. Bd1 {[%clk 0:00:08.2]} 32... Qf3 {[%clk 0:00:11]} 33. Rh4
{[%clk 0:00:03.9]} 33... Rxd1# {[%clk 0:00:10.8]} 0-1

[Event "*** SCC Grand Prix: Titled Tuesday Blitz"]
[Site "Chess.com"]
[Date "2020.08.25"]
[Round "9"]
[White "ElGasanov"]
[Black "PaulfromSPb"]
[Result "1-0"]
[WhiteElo "2763"]
[BlackElo "2677"]
[TimeControl "180+1"]
[EndTime "11:47:24 PDT"]
[Termination "ElGasanov won on time"]

1. d4 {[%clk 0:03:00.9]} 1... Nf6 {[%clk 0:02:32.5]} 2. Nf3 {[%clk 0:02:59.5]}
2... e6 {[%clk 0:02:32.1]} 3. c4 {[%clk 0:02:58]} 3... b6 {[%clk 0:02:32.1]} 4.
Bf4 {[%clk 0:02:53.3]} 4... Bb7 {[%clk 0:02:25.4]} 5. e3 {[%clk 0:02:53.7]} 5...
Be7 {[%clk 0:02:21.3]} 6. h3 {[%clk 0:02:53.3]} 6... O-O {[%clk 0:02:21.1]} 7.
Nc3 {[%clk 0:02:53.9]} 7... d6 {[%clk 0:02:14.1]} 8. Be2 {[%clk 0:02:51.8]} 8...
Nbd7 {[%clk 0:02:12.4]} 9. Qc2 {[%clk 0:02:52.3]} 9... Re8 {[%clk 0:02:09.8]}
10. O-O {[%clk 0:02:51.5]} 10... Bf8 {[%clk 0:02:09.8]} 11. Rfd1 {[%clk
0:02:50.4]} 11... Qe7 {[%clk 0:01:55.8]} 12. b4 {[%clk 0:02:41.9]} 12... a6
{[%clk 0:01:32.2]} 13. Bh2 {[%clk 0:02:39.4]} 13... g6 {[%clk 0:01:27.3]} 14. a4
{[%clk 0:02:35.5]} 14... a5 {[%clk 0:01:21.4]} 15. Nb5 {[%clk 0:02:28.8]} 15...
Rec8 {[%clk 0:01:18.8]} 16. c5 {[%clk 0:02:20.8]} 16... Be4 {[%clk 0:01:12.6]}
17. Qb2 {[%clk 0:02:11.5]} 17... axb4 {[%clk 0:00:54.3]} 18. cxd6 {[%clk
0:02:00.3]} 18... cxd6 {[%clk 0:00:53.8]} 19. Bxd6 {[%clk 0:01:56.9]} 19... Qd8
{[%clk 0:00:49]} 20. Qxb4 {[%clk 0:01:54.2]} 20... Nd5 {[%clk 0:00:48.6]} 21.
Qe1 {[%clk 0:01:52.8]} 21... Bc2 {[%clk 0:00:42.9]} 22. Rdc1 {[%clk 0:01:46.5]}
22... Rxa4 {[%clk 0:00:35.5]} 23. Rxa4 {[%clk 0:00:35.6]} 23... Bxa4 {[%clk
0:00:36.4]} 24. Bxf8 {[%clk 0:00:34.9]} 24... Qxf8 {[%clk 0:00:34.1]} 25. Ra1
{[%clk 0:00:35.3]} 25... Bc2 {[%clk 0:00:28.9]} 26. Ra7 {[%clk 0:00:26.4]} 26...
Qd8 {[%clk 0:00:20.7]} 27. Nd6 {[%clk 0:00:23.2]} 27... Ra8 {[%clk 0:00:18.9]}
28. Nxf7 {[%clk 0:00:20.9]} 28... Qe8 {[%clk 0:00:09]} 29. Nd6 {[%clk
0:00:18.6]} 29... Qd8 {[%clk 0:00:09.3]} 30. Qa1 {[%clk 0:00:15.7]} 30... Rxa7
{[%clk 0:00:07.4]} 31. Qxa7 {[%clk 0:00:16.4]} 31... N5f6 {[%clk 0:00:04.2]} 32.
Ne5 {[%clk 0:00:15.5]} 32... Nxe5 {[%clk 0:00:02.9]} 33. dxe5 {[%clk 0:00:14.7]}
33... Nd7 {[%clk 0:00:03.5]} 34. f4 {[%clk 0:00:13.7]} 34... Bb3 {[%clk
0:00:01.4]} 35. Bb5 {[%clk 0:00:12.3]} 1-0

[Event "*** SCC Grand Prix: Titled Tuesday Blitz"]
[Site "Chess.com"]
[Date "2020.08.25"]
[Round "9"]
[White "GigaQuparadze"]
[Black "Legendinunknown"]
[Result "1-0"]
[WhiteElo "2814"]
[BlackElo "2662"]
[TimeControl "180+1"]
[EndTime "11:47:24 PDT"]
[Termination "GigaQuparadze won by resignation"]

1. e4 {[%clk 0:03:00.9]} 1... e5 {[%clk 0:02:57.7]} 2. Nc3 {[%clk 0:03:01.8]}
2... Nf6 {[%clk 0:02:57.1]} 3. Nf3 {[%clk 0:03:02.7]} 3... Nc6 {[%clk
0:02:55.4]} 4. Bb5 {[%clk 0:03:03.2]} 4... Nd4 {[%clk 0:02:54.9]} 5. O-O {[%clk
0:03:01.6]} 5... Nxb5 {[%clk 0:02:50.9]} 6. Nxb5 {[%clk 0:03:02.5]} 6... d6
{[%clk 0:02:48.2]} 7. d4 {[%clk 0:03:02.2]} 7... exd4 {[%clk 0:02:48]} 8. Nbxd4
{[%clk 0:03:03.1]} 8... Be7 {[%clk 0:02:47.6]} 9. Re1 {[%clk 0:03:01.7]} 9...
O-O {[%clk 0:02:47.2]} 10. c4 {[%clk 0:03:00.4]} 10... Bd7 {[%clk 0:02:44]} 11.
Qd3 {[%clk 0:02:59.3]} 11... Re8 {[%clk 0:02:43.8]} 12. Bg5 {[%clk 0:02:58.6]}
12... h6 {[%clk 0:02:41]} 13. Bd2 {[%clk 0:02:58]} 13... c5 {[%clk 0:02:39.5]}
14. Ne2 {[%clk 0:02:54.4]} 14... Bc6 {[%clk 0:02:37.4]} 15. Ng3 {[%clk
0:02:54.5]} 15... Bf8 {[%clk 0:02:37.2]} 16. Bc3 {[%clk 0:02:54.6]} 16... Ng4
{[%clk 0:02:32.9]} 17. Rad1 {[%clk 0:02:53.2]} 17... Qc7 {[%clk 0:02:14]} 18.
Nf5 {[%clk 0:02:48.7]} 18... Rad8 {[%clk 0:02:12.5]} 19. h3 {[%clk 0:02:46]}
19... Ne5 {[%clk 0:02:04.9]} 20. Nxe5 {[%clk 0:02:44.8]} 20... dxe5 {[%clk
0:02:04.7]} 21. Qf3 {[%clk 0:02:45.3]} 21... Rxd1 {[%clk 0:02:01.4]} 22. Rxd1
{[%clk 0:02:46.2]} 22... g6 {[%clk 0:02:00.2]} 23. Ne3 {[%clk 0:02:45.7]} 23...
Bg7 {[%clk 0:01:53.9]} 24. Nd5 {[%clk 0:02:45.3]} 24... Qd8 {[%clk 0:01:53.1]}
25. Qg3 {[%clk 0:02:38.4]} 25... Qg5 {[%clk 0:01:47.9]} 26. Qd3 {[%clk
0:02:27.8]} 26... f5 {[%clk 0:01:37.6]} 27. Bd2 {[%clk 0:02:26.9]} 27... fxe4
{[%clk 0:01:12.4]} 28. Qxe4 {[%clk 0:02:27.8]} 28... Qf5 {[%clk 0:01:12.2]} 29.
Qe1 {[%clk 0:02:15.9]} 29... e4 {[%clk 0:01:10.7]} 30. Bc3 {[%clk 0:02:14.4]}
30... Qf7 {[%clk 0:01:05.2]} 31. Qe3 {[%clk 0:02:11.1]} 31... Rf8 {[%clk
0:00:56.5]} 32. Qxc5 {[%clk 0:02:02.9]} 32... Bxd5 {[%clk 0:00:25.2]} 33. cxd5
{[%clk 0:02:03.8]} 33... Qf5 {[%clk 0:00:20.4]} 34. Qe3 {[%clk 0:02:01.7]} 34...
Bxc3 {[%clk 0:00:19.4]} 35. bxc3 {[%clk 0:02:02.6]} 35... Rc8 {[%clk 0:00:19.3]}
36. d6 {[%clk 0:02:01.5]} 36... Kg7 {[%clk 0:00:16.7]} 37. d7 {[%clk 0:02:01.3]}
37... Rd8 {[%clk 0:00:16.7]} 38. Qd4+ {[%clk 0:02:00.6]} 38... Kf7 {[%clk
0:00:16.8]} 39. Qc4+ {[%clk 0:01:56.7]} 39... Qe6 {[%clk 0:00:16.2]} 40. Qc7
{[%clk 0:01:55.2]} 40... Ke7 {[%clk 0:00:16.1]} 41. Qxb7 {[%clk 0:01:55.3]}
41... Rxd7 {[%clk 0:00:16.3]} 42. Rxd7+ {[%clk 0:01:54.5]} 42... Qxd7 {[%clk
0:00:17.2]} 43. Qxe4+ {[%clk 0:01:55.1]} 43... Kf7 {[%clk 0:00:17.2]} 44. Qc4+
{[%clk 0:01:54.9]} 44... Kf8 {[%clk 0:00:15.9]} 45. Qb4+ {[%clk 0:01:54.2]}
45... Kf7 {[%clk 0:00:15.6]} 46. Qd4 {[%clk 0:01:53.9]} 46... Qc6 {[%clk
0:00:14.6]} 47. a4 {[%clk 0:01:53.9]} 47... a5 {[%clk 0:00:13.8]} 48. Qa7+
{[%clk 0:01:52.9]} 48... Ke6 {[%clk 0:00:13.7]} 49. Qxa5 {[%clk 0:01:52.9]}
49... Qe4 {[%clk 0:00:14.2]} 50. Qb6+ {[%clk 0:01:51.8]} 50... Kf7 {[%clk
0:00:14.4]} 51. Qa7+ {[%clk 0:01:51]} 51... Kg8 {[%clk 0:00:12.5]} 52. Qd4
{[%clk 0:01:51.9]} 52... Qb1+ {[%clk 0:00:11.8]} 53. Kh2 {[%clk 0:01:51.9]}
53... Qa1 {[%clk 0:00:12.7]} 54. Qb4 {[%clk 0:01:48.1]} 54... Kh7 {[%clk
0:00:11.8]} 55. a5 {[%clk 0:01:47.8]} 55... h5 {[%clk 0:00:12.1]} 56. h4 {[%clk
0:01:46.2]} 56... Qe1 {[%clk 0:00:10]} 57. Qd4 {[%clk 0:01:43.7]} 57... Qa1
{[%clk 0:00:07.8]} 58. Qa7+ {[%clk 0:01:43.5]} 58... Kh6 {[%clk 0:00:07.4]} 59.
a6 {[%clk 0:01:41.9]} 59... Qa5 {[%clk 0:00:07]} 60. Qe3+ {[%clk 0:01:40.7]}
60... Kh7 {[%clk 0:00:07]} 61. a7 {[%clk 0:01:40.3]} 61... Qa4 {[%clk
0:00:06.8]} 62. Qe7+ {[%clk 0:01:38.9]} 62... Kh6 {[%clk 0:00:06.5]} 63. Qf8+
{[%clk 0:01:38.2]} 63... Kh7 {[%clk 0:00:06.5]} 64. a8=Q {[%clk 0:01:37.8]}
64... Qxh4+ {[%clk 0:00:06.3]} 65. Kg1 {[%clk 0:01:37.9]} 1-0

[Event "*** SCC Grand Prix: Titled Tuesday Blitz"]
[Site "Chess.com"]
[Date "2020.08.25"]
[Round "9"]
[White "shineatchess"]
[Black "Nemsko"]
[Result "0-1"]
[WhiteElo "2216"]
[BlackElo "2359"]
[TimeControl "180+1"]
[EndTime "11:47:24 PDT"]
[Termination "Nemsko won by checkmate"]

1. Nf3 {[%clk 0:03:00.9]} 1... Nf6 {[%clk 0:02:53.7]} 2. g3 {[%clk 0:03:00.8]}
2... e6 {[%clk 0:02:53.4]} 3. Bg2 {[%clk 0:02:59.8]} 3... d5 {[%clk 0:02:54.3]}
4. d4 {[%clk 0:02:55.3]} 4... Bd6 {[%clk 0:02:53.1]} 5. c4 {[%clk 0:02:51.4]}
5... b6 {[%clk 0:02:52.3]} 6. O-O {[%clk 0:02:46.4]} 6... O-O {[%clk 0:02:50.6]}
7. b3 {[%clk 0:02:41.8]} 7... Bb7 {[%clk 0:02:50.2]} 8. Bb2 {[%clk 0:02:41.3]}
8... Nbd7 {[%clk 0:02:49.9]} 9. Nbd2 {[%clk 0:02:41]} 9... Rc8 {[%clk
0:02:44.4]} 10. e3 {[%clk 0:02:35]} 10... Re8 {[%clk 0:02:37.5]} 11. Ne5 {[%clk
0:02:29.2]} 11... c5 {[%clk 0:02:31.3]} 12. f4 {[%clk 0:02:23.4]} 12... Qc7
{[%clk 0:02:26.8]} 13. Rc1 {[%clk 0:02:20.6]} 13... Qb8 {[%clk 0:02:25.3]} 14.
Qf3 {[%clk 0:02:14.2]} 14... Rc7 {[%clk 0:02:21.6]} 15. Qe2 {[%clk 0:01:54.1]}
15... dxc4 {[%clk 0:02:14.8]} 16. Ndxc4 {[%clk 0:01:49.7]} 16... Bf8 {[%clk
0:02:11.8]} 17. Nxd7 {[%clk 0:01:44.1]} 17... Nxd7 {[%clk 0:02:08.1]} 18. dxc5
{[%clk 0:01:40.9]} 18... Bxc5 {[%clk 0:02:02.5]} 19. Ne5 {[%clk 0:01:37.1]}
19... Bxg2 {[%clk 0:01:59.5]} 20. Kxg2 {[%clk 0:01:25.5]} 20... Qb7+ {[%clk
0:01:56.2]} 21. Rf3 {[%clk 0:01:22.2]} 21... Nxe5 {[%clk 0:01:48.1]} 22. Bxe5
{[%clk 0:01:21]} 22... Rd7 {[%clk 0:01:48.4]} 23. Rc2 {[%clk 0:00:58.8]} 23...
Red8 {[%clk 0:01:45.8]} 24. a3 {[%clk 0:00:57.3]} 24... Bxa3 {[%clk 0:01:40.4]}
25. e4 {[%clk 0:00:52.1]} 25... Bc5 {[%clk 0:01:36.4]} 26. Rf1 {[%clk
0:00:43.2]} 26... f5 {[%clk 0:01:27.7]} 27. Kh3 {[%clk 0:00:28.1]} 27... fxe4
{[%clk 0:01:24.9]} 28. Qg4 {[%clk 0:00:23.5]} 28... Qd5 {[%clk 0:01:18]} 29. Rc4
{[%clk 0:00:18.1]} 29... e3 {[%clk 0:01:04.7]} 30. Re1 {[%clk 0:00:11.6]} 30...
a5 {[%clk 0:00:45.4]} 31. Rcc1 {[%clk 0:00:09.6]} 31... g6 {[%clk 0:00:33.9]}
32. Rcd1 {[%clk 0:00:08.8]} 32... Qc6 {[%clk 0:00:34.2]} 33. Rxd7 {[%clk
0:00:08.2]} 33... Rxd7 {[%clk 0:00:35.1]} 34. Qg5 {[%clk 0:00:06.6]} 34... Be7
{[%clk 0:00:27.8]} 35. Qh6 {[%clk 0:00:05.9]} 35... Bf8 {[%clk 0:00:27.9]} 36.
Qg5 {[%clk 0:00:05.9]} 36... Rd2 {[%clk 0:00:23.1]} 37. Rxe3 {[%clk 0:00:05.8]}
37... Qg2+ {[%clk 0:00:22.6]} 38. Kg4 {[%clk 0:00:06.1]} 38... Qxh2 {[%clk
0:00:22.5]} 39. Qf6 {[%clk 0:00:04.3]} 39... Qh5# {[%clk 0:00:22.5]} 0-1